bitfinex/quotes_BTCUSD_20241223
["timestamp","ask_amount","ask_price","bid_price","bid_amount"]
[1734921378574,0.07956184,94083.0,94068.0,0.212611]
[1734921378773,0.07956184,94083.0,94068.0,0.425222]
[1734921379383,0.07956184,94083.0,94069.0,0.212609]
[1734921379617,0.00016184,94083.0,94070.0,0.1957012]
[1734921379822,0.00016184,94083.0,94080.0,0.212584]
[1734921380257,0.0001712,94097.0,94085.0,0.15]
[1734921380464,0.261492,94121.0,94088.0,0.15]
[1734921380642,0.0751,94122.0,94106.0,0.212524]
[1734921380872,0.212496,94120.0,94097.0,0.212546]
[1734921381061,0.212496,94120.0,94099.0,0.212542]
[1734921381237,0.212496,94120.0,94100.0,0.4082392]
[1734921381437,0.312493,94121.0,94107.0,0.212522]
[1734921381849,0.00071094,94110.0,94107.0,0.212522]
[1734921382454,0.00071094,94110.0,94104.0,0.15]
[1734921382895,0.00067094,94110.0,94104.0,0.15]
[1734921383065,0.00067094,94110.0,94109.0,0.02091238]
[1734921383652,0.0822712,94135.0,94124.0,0.212485]
[1734921384023,0.08243297,94135.0,94120.0,0.4081932]
[1734921384232,0.0001708,94140.0,94124.0,0.15]
[1734921384437,0.000171,94145.0,94131.0,0.15]
[1734921384612,0.000171,94145.0,94132.0,0.1013084]
[1734921384816,0.000171,94145.0,94141.0,0.212445]
[1734921385025,0.000171,94145.0,94143.0,0.212442]
[1734921385229,0.000171,94145.0,94144.0,0.15]
[1734921386225,0.000171,94145.0,94137.0,0.02098232]
[1734921386454,0.000171,94145.0,94137.0,0.17098232]
[1734921386627,0.000171,94145.0,94138.0,0.212454]
[1734921387003,0.000171,94145.0,94143.0,0.15]
[1734921387249,0.000171,94145.0,94120.0,0.00016177]
[1734921387453,0.000171,94145.0,94131.0,0.25545032]
[1734921387686,0.000171,94145.0,94141.0,0.003]
[1734921387892,0.000171,94145.0,94131.0,0.212468]
[1734921388094,0.000171,94145.0,94130.0,0.23961264]
[1734921388095,0.31244,94144.0,94130.0,0.23961264]
[1734921388244,0.31244,94144.0,94143.0,0.007]
[1734921388456,0.31244,94144.0,94130.0,0.04391144]
[1734921388654,0.31244,94144.0,94131.0,0.02152698]
[1734921389182,0.1,94144.0,94122.0,0.15]
[1734921389385,0.1,94144.0,94120.0,0.19586297]
[1734921389528,0.21248,94127.0,94120.0,0.00016177]
[1734921389739,0.1,94131.0,94120.0,0.00016177]
[1734921390153,0.212472,94130.0,94120.0,0.04370591]
[1734921390362,0.212472,94130.0,94120.0,0.00016177]
[1734921390560,0.212463,94134.0,94120.0,0.00016177]
[1734921390561,0.312491,94122.0,94120.0,0.00016177]
[1734921390734,0.3795084,94121.0,94120.0,0.00016177]
[1734921391174,0.3795084,94121.0,94120.0,0.00216177]
[1734921391349,0.3795084,94121.0,94120.0,0.00016177]
[1734921391754,0.212491,94122.0,94120.0,0.00016177]
[1734921391755,0.1805,94137.0,94120.0,0.00416177]
[1734921391960,0.1,94134.0,94120.0,0.19986297]
[1734921392187,0.1,94134.0,94121.0,0.212491]
[1734921392382,0.1,94134.0,94120.0,0.02515047]
[1734921392588,0.1,94134.0,94120.0,0.00416177]
[1734921392762,0.1,94127.0,94120.0,0.00416177]
[1734921393166,0.1,94127.0,94120.0,0.00016177]
[1734921393636,0.1,94133.0,94120.0,0.00416177]
[1734921393838,0.1,94133.0,94120.0,0.00016177]
[1734921393986,0.212468,94132.0,94120.0,0.00016177]
[1734921394195,0.212468,94132.0,94120.0,0.00216177]
[1734921394398,0.212483,94125.0,94120.0,0.00016177]
[1734921394828,0.1,94121.0,94120.0,0.00216177]
[1734921395010,0.2026365,94121.0,94120.0,0.00016177]
[1734921395417,0.3026365,94121.0,94120.0,0.00016177]
[1734921395638,0.3789084,94121.0,94120.0,0.00016177]
[1734921397205,0.3799084,94121.0,94120.0,0.00016177]
[1734921397339,0.3789084,94121.0,94120.0,0.00016177]
[1734921397543,0.1,94100.0,94066.0,0.536]
[1734921397743,0.212562,94090.0,94083.0,0.02162265]
[1734921397968,0.1,94086.0,94067.0,0.212614]
[1734921398542,0.21259,94078.0,94060.0,0.212628]
[1734921398748,0.1,94081.0,94060.0,0.212628]
[1734921399035,0.179,94092.0,94071.0,0.020748]
[1734921399036,0.1,94088.0,94071.0,0.020748]
[1734921399247,0.079,94092.0,94075.0,0.212595]
[1734921399448,0.0805,94104.0,94093.0,0.212554]
[1734921399646,0.1,94104.0,94093.0,0.212554]
[1734921399983,0.1,94104.0,94076.0,0.1013084]
[1734921400184,0.1,94104.0,94094.0,0.212553]
[1734921400758,0.1,94095.0,94094.0,0.00053934]
[1734921401569,0.00132842,94098.0,94094.0,0.00053934]
[1734921401755,0.1,94099.0,94094.0,0.00553934]
[1734921402090,0.1,94099.0,94094.0,0.00053934]
[1734921402533,0.1,94099.0,94084.0,0.212575]
[1734921402731,0.10053867,94099.0,94086.0,0.212571]
[1734921402946,0.1,94093.0,94079.0,0.04409253]
[1734921403248,0.1,94093.0,94076.0,0.15]
[1734921403620,0.425115,94092.0,94076.0,0.15]
[1734921403816,0.212557,94092.0,94076.0,0.15]
[1734921404023,0.212557,94092.0,94079.0,0.001]
[1734921404256,0.1,94080.0,94079.0,0.001]
[1734921404458,0.1,94080.0,94061.0,0.362627]
[1734921404769,0.1,94080.0,94076.0,0.002]
[1734921405123,0.1,94080.0,94055.0,0.536]
[1734921405124,0.1,94080.0,94068.0,0.17167958]
[1734921405257,0.1,94094.0,94070.0,0.15]
[1734921405457,0.1,94089.0,94079.0,0.001]
[1734921405982,0.1,94080.0,94079.0,0.001]
[1734921406230,0.2013084,94080.0,94079.0,0.001]
[1734921406400,0.20263704,94080.0,94079.0,0.001]
[1734921406573,0.38133704,94080.0,94079.0,0.001]
[1734921406780,0.1,94077.0,94076.0,8.54e-05]
[1734921407150,0.30263723,94077.0,94076.0,0.0070854]
[1734921407265,0.3013084,94077.0,94076.0,8.54e-05]
[1734921408092,0.3013084,94077.0,94076.0,0.0080854]
[1734921408737,0.2991824,94077.0,94076.0,8.54e-05]
[1734921409538,0.2013084,94077.0,94076.0,8.54e-05]
[1734921409765,0.20263723,94077.0,94076.0,8.54e-05]
[1734921410162,0.20263723,94077.0,94076.0,0.0060854]
[1734921410365,0.2013084,94077.0,94076.0,8.54e-05]
[1734921410802,0.2033084,94077.0,94076.0,8.54e-05]
[1734921410976,0.20463723,94077.0,94076.0,8.54e-05]
[1734921411612,0.2011824,94077.0,94076.0,8.54e-05]
[1734921411903,0.2011824,94077.0,94076.0,0.0022114]
[1734921411904,0.102,94077.0,94076.0,0.0022114]
[1734921412111,0.002,94077.0,94076.0,8.54e-05]
[1734921412518,0.002,94077.0,94066.0,0.02155515]
[1734921412737,0.212594,94076.0,94056.0,0.15]
[1734921412954,0.212594,94076.0,94062.0,0.0209888]
[1734921413324,0.1,94061.0,94044.0,0.15]
[1734921413526,0.21263,94060.0,94044.0,0.15]
[1734921413956,0.1,94061.0,94044.0,0.15]
[1734921414354,0.212604,94072.0,94044.0,0.15]
[1734921414355,0.1,94074.0,94073.0,0.002126]
[1734921414742,0.1,94074.0,94073.0,0.00228784]
[1734921415178,0.197874,94074.0,94073.0,0.00016184]
[1734921416426,0.30051112,94074.0,94073.0,0.00016184]
[1734921416624,0.2991824,94074.0,94073.0,0.00016184]
[1734921417607,0.3021824,94074.0,94073.0,0.00016184]
[1734921418226,0.2043084,94074.0,94073.0,0.00016184]
[1734921418468,0.1,94074.0,94073.0,6.184e-05]
[1734921418639,0.1,94074.0,94073.0,0.00014734]
[1734921418852,0.104,94074.0,94073.0,0.00014734]
[1734921419688,0.20663712,94074.0,94073.0,0.00014734]
[1734921419894,0.2053084,94074.0,94073.0,0.00014734]
[1734921420314,0.2013084,94074.0,94073.0,0.00014734]
[1734921420516,0.20363721,94074.0,94073.0,0.00014734]
[1734921420914,0.20363721,94074.0,94042.0,0.21267]
[1734921420915,0.312648,94052.0,94014.0,0.09520901]
[1734921421096,0.15,94072.0,94014.0,0.09520901]
[1734921421097,0.410578,94027.0,94014.0,0.09520901]
[1734921421329,0.5118864,94027.0,94026.0,0.00024699]
[1734921421783,0.5908864,94027.0,94026.0,0.00024699]
[1734921422607,0.1,94010.0,94009.0,0.01020405]
[1734921422818,0.1,94008.0,94001.0,8.55e-05]
[1734921423029,0.21275,94007.0,94005.0,0.00016097]
[1734921423883,0.1,94006.0,94005.0,0.00016097]
[1734921424266,0.1,94006.0,94005.0,0.00316097]
[1734921424496,0.1,94006.0,94005.0,0.00016097]
[1734921424869,0.1,94006.0,94005.0,0.00416097]
[1734921425187,0.10132969,94006.0,94005.0,0.00016097]
[1734921425598,0.10132969,94006.0,94005.0,0.00416097]
[1734921425773,0.1,94006.0,94005.0,0.00416097]
[1734921426641,0.1,94008.0,94005.0,0.00416097]
[1734921426850,0.1,94008.0,94005.0,0.00016097]
[1734921427269,0.212715,94023.0,94005.0,0.00016097]
[1734921427270,0.51453804,94050.0,94010.0,0.002126]
[1734921427490,0.1,94015.0,94012.0,0.002126]
[1734921428034,0.21272,94021.0,94005.0,0.00316097]
[1734921428035,0.1,94017.0,94013.0,0.002126]
[1734921428279,0.1,94017.0,94005.0,0.00516097]
[1734921428481,0.1,94017.0,94010.0,0.02118766]
[1734921428622,0.1,94024.0,94020.0,0.002126]
[1734921428824,0.312704,94028.0,94010.0,0.02118766]
[1734921429241,0.312704,94028.0,94026.0,0.002126]
[1734921430841,0.312704,94028.0,94026.0,0.0022115]
[1734921431170,0.314704,94028.0,94026.0,0.0022115]
[1734921431371,0.30051177,94027.0,94026.0,8.55e-05]
[1734921431579,0.2991824,94027.0,94026.0,8.55e-05]
[1734921431775,0.2991824,94027.0,94026.0,0.0010855]
[1734921432591,0.2991824,94027.0,94001.0,0.2128485]
[1734921432592,0.1,94027.0,94007.0,0.02143859]
[1734921432791,0.10016151,94027.0,94007.0,0.02143859]
[1734921433034,0.10016151,94027.0,94009.0,0.212745]
[1734921433435,0.212707,94026.0,94009.0,0.212745]
[1734921433630,0.10016151,94027.0,94016.0,0.212729]
[1734921434099,0.10016151,94027.0,94010.0,0.212741]
[1734921434262,0.10016151,94027.0,94012.0,0.212738]
[1734921434746,0.1,94024.0,94009.0,0.002]
[1734921434949,0.1,94024.0,94007.0,0.02143859]
[1734921435433,0.212713,94023.0,94008.0,0.212747]
[1734921435687,0.00016151,94027.0,94011.0,0.023]
[1734921435855,0.00016151,94027.0,94023.0,0.212713]
[1734921437478,0.00016151,94027.0,94022.0,0.212715]
[1734921437675,0.00016151,94027.0,94023.0,0.005]
[1734921438467,0.00016151,94027.0,94023.0,0.217712]
[1734921438826,0.00016151,94027.0,94026.0,0.15]
[1734921439021,0.00016151,94027.0,94026.0,0.2743084]
[1734921439257,0.00016151,94027.0,94026.0,0.2513084]
[1734921439459,0.00016151,94027.0,94026.0,0.15]
[1734921439664,0.00016151,94027.0,94026.0,0.362707]
[1734921440057,0.00016151,94027.0,94011.0,0.023]
[1734921440267,0.00016151,94027.0,94013.0,0.15]
[1734921440469,0.00016151,94027.0,94013.0,0.362734]
[1734921440877,0.00016151,94027.0,94023.0,0.02144683]
[1734921441104,0.00016151,94027.0,94026.0,0.008]
[1734921441329,0.00016151,94027.0,94011.0,0.362741]
[1734921441532,0.00016151,94027.0,94021.0,0.0209443]
[1734921442592,0.00016151,94027.0,94018.0,0.0429443]
[1734921442791,0.00016151,94027.0,94017.0,0.40839393]
[1734921443325,0.00016151,94027.0,94023.0,0.425426]
[1734921444110,0.00016151,94027.0,94023.0,0.212713]
[1734921444533,0.00016151,94027.0,94023.0,0.215713]
[1734921444730,0.00016151,94027.0,94024.0,0.1013084]
[1734921444912,0.00016151,94027.0,94025.0,0.15]
[1734921445117,0.00016151,94027.0,94026.0,0.2743084]
[1734921446187,0.00016151,94027.0,94026.0,0.2513084]
[1734921446734,0.00016151,94027.0,94026.0,0.2603084]
[1734921447659,0.00016151,94027.0,94026.0,0.1323084]
[1734921448795,0.00016151,94027.0,94026.0,0.1233084]
[1734921449261,0.00016151,94027.0,94026.0,0.1323084]
[1734921450263,0.00016151,94027.0,94026.0,0.009]
[1734921452483,0.00016151,94027.0,94022.0,0.02171087]
[1734921452920,0.00016151,94027.0,94026.0,0.009]
[1734921453211,0.00016151,94027.0,94017.0,0.536]
[1734921453387,0.00016151,94027.0,94026.0,0.009]
[1734921453799,0.00016151,94027.0,94024.0,0.212709]
[1734921453998,0.00016151,94027.0,94026.0,0.212707]
[1734921454737,0.00016151,94027.0,94026.0,0.0208317]
[1734921455675,0.00016151,94027.0,94026.0,0.0298317]
[1734921456511,0.00016151,94027.0,94026.0,0.0208317]
[1734921456911,0.00033251,94027.0,94026.0,0.0298317]
[1734921457452,0.00033251,94027.0,94022.0,8.55e-05]
[1734921457628,0.00033251,94027.0,94023.0,0.212712]
[1734921458627,0.00033251,94027.0,94023.0,0.425424]
[1734921458985,0.00033251,94027.0,94026.0,0.02152432]
[1734921459179,15.00133251,94027.0,94026.0,0.03052432]
[1734921459389,15.00033251,94027.0,94026.0,0.02152432]
[1734921459807,15.00133251,94027.0,94026.0,0.02152432]
[1734921460174,15.00133251,94027.0,94026.0,0.03052432]
[1734921460379,15.00233251,94027.0,94026.0,0.03052432]
[1734921460761,15.00233251,94027.0,94026.0,0.13183272]
[1734921460961,15.00233251,94027.0,94026.0,0.15483272]
[1734921461161,15.00233251,94027.0,94026.0,0.30483272]
[1734921462016,15.00233251,94027.0,94026.0,0.18052432]
[1734921462324,15.00233251,94027.0,94026.0,0.03052432]
[1734921462562,15.00233251,94027.0,94026.0,0.212707]
[1734921464207,15.00233251,94027.0,94026.0,0.23390978]
[1734921465721,15.00233251,94027.0,94026.0,0.35821818]
[1734921465921,14.05397975,94027.0,94026.0,1.04421818]
[1734921466127,12.76959193,94027.0,94026.0,1.04421818]
[1734921466328,12.76959193,94027.0,94026.0,1.57950418]
[1734921466329,10.58363354,94027.0,94026.0,1.57950418]
[1734921466527,6.99544814,94027.0,94026.0,1.57950418]
[1734921466733,3.90295108,94027.0,94026.0,1.57950418]
[1734921466963,1.32326998,94027.0,94026.0,1.57950418]
[1734921467162,0.0488,94082.0,94075.0,0.212596]
[1734921467366,0.04896193,94082.0,94072.0,0.13042203]
[1734921467562,0.000171,94094.0,94077.0,0.212591]
[1734921467782,0.00071044,94094.0,94081.0,0.13042203]
[1734921467963,0.00071044,94094.0,94090.0,0.425124]
[1734921468373,0.00071044,94094.0,94092.0,0.212557]
[1734921468577,0.00071044,94094.0,94092.0,0.23393195]
[1734921469670,0.00071044,94094.0,94092.0,0.23693195]
[1734921469904,0.00071044,94094.0,94090.0,0.04394445]
[1734921470119,0.00071044,94094.0,94083.0,0.23351121]
[1734921470321,0.00071044,94094.0,94092.0,0.006]
[1734921470762,0.0819,94093.0,94092.0,0.006]
[1734921471858,0.0819,94093.0,94081.0,0.02172538]
[1734921471971,0.294457,94093.0,94077.0,0.536]
[1734921472194,0.212571,94086.0,94083.0,0.002]
[1734921472399,0.212571,94086.0,94077.0,0.04278873]
[1734921472623,0.1,94080.0,94062.0,0.212625]
[1734921472827,0.1,94072.0,94054.0,0.212643]
[1734921473091,0.1819,94071.0,94053.0,0.04402917]
[1734921473395,0.260907,94070.0,94045.0,0.212664]
[1734921473600,0.473515,94070.0,94046.0,0.1013084]
[1734921473754,0.473515,94070.0,94036.0,0.212684]
[1734921473755,0.1,94061.0,94036.0,0.212684]
[1734921473953,0.312635,94058.0,94036.0,0.212684]
[1734921474271,0.1,94058.0,94038.0,0.02122954]
[1734921474925,0.0483,94070.0,94036.0,0.1013084]
[1734921474926,0.1,94049.0,94036.0,0.04353645]
[1734921475126,0.1,94049.0,94038.0,0.00016193]
[1734921475247,0.260957,94048.0,94038.0,0.00016193]
[1734921475649,0.212671,94042.0,94038.0,0.00016193]
[1734921475853,0.0483,94048.0,94038.0,0.00016193]
[1734921476053,0.212659,94047.0,94038.0,0.00016193]
[1734921476297,0.0483,94048.0,94038.0,0.00016193]
[1734921476852,0.0483,94048.0,94038.0,0.00216193]
[1734921477314,0.0483,94048.0,94038.0,0.00016193]
[1734921477633,0.0483,94048.0,94039.0,0.212677]
[1734921477898,0.0483,94048.0,94033.0,0.212691]
[1734921478047,0.0483,94048.0,94030.0,0.25929363]
[1734921478048,0.0483,94048.0,94038.0,0.002]
[1734921479066,0.0483,94048.0,94039.0,0.212677]
[1734921479630,0.0483,94048.0,94038.0,0.004]
[1734921479836,0.0483,94048.0,94038.0,0.0040855]
[1734921480149,0.0483,94048.0,94038.0,8.55e-05]
[1734921480351,0.312675,94040.0,94039.0,0.003]
[1734921480580,0.312675,94040.0,94038.0,8.55e-05]
[1734921480581,0.39929707,94040.0,94038.0,8.55e-05]
[1734921480975,0.1,94039.0,94038.0,0.0030855]
[1734921481176,0.1,94039.0,94038.0,8.55e-05]
[1734921481380,0.10138836,94039.0,94038.0,8.55e-05]
[1734921482620,0.10138836,94039.0,94021.0,0.04283306]
[1734921482839,0.312679,94038.0,94021.0,0.04283306]
[1734921483025,0.52536,94038.0,94020.0,0.02106621]
[1734921483228,0.00481366,94037.0,94020.0,0.02106621]
[1734921483432,0.212684,94036.0,94020.0,0.02106621]
[1734921484221,0.00342491,94035.0,94020.0,0.02106621]
[1734921484418,0.00342491,94035.0,94021.0,0.212718]
[1734921485001,0.00342491,94035.0,94021.0,0.3140264]
[1734921485204,0.0819,94040.0,94022.0,0.1013084]
[1734921485410,0.0483,94048.0,94030.0,0.19532216]
[1734921485617,0.0483,94048.0,94020.0,0.02706621]
[1734921485618,0.0483,94048.0,94038.0,0.19532216]
[1734921485855,0.00131383,94047.0,94038.0,0.29663056]
[1734921486024,0.0473,94063.0,94045.0,0.212663]
[1734921486225,0.00016172,94060.0,94050.0,0.19532216]
[1734921486650,0.00016172,94060.0,94056.0,0.212637]
[1734921487261,1e-08,94060.0,94057.0,0.1013084]
[1734921487457,0.00127713,94060.0,94058.0,0.362634]
[1734921487625,0.0762,94086.0,94076.0,0.212594]
[1734921488067,0.0762,94086.0,94076.0,0.425188]
[1734921488275,0.0762,94086.0,94070.0,0.19532216]
[1734921488493,0.0473,94093.0,94075.0,0.02163238]
[1734921488693,0.1,94090.0,94077.0,0.212591]
[1734921489297,0.1,94090.0,94080.0,0.19532216]
[1734921489966,0.04746184,94093.0,94081.0,0.212582]
[1734921490166,0.04746184,94093.0,94087.0,0.212569]
[1734921490487,0.00016184,94093.0,94088.0,0.15]
[1734921490703,0.0763708,94122.0,94112.0,0.212512]
[1734921490926,0.07691014,94122.0,94112.0,0.40783416]
[1734921491076,0.07691014,94122.0,94113.0,0.15]
[1734921491278,0.07691014,94122.0,94103.0,0.15]
[1734921491485,0.07691014,94122.0,94111.0,0.15]
[1734921492388,0.28940014,94122.0,94111.0,0.15]
[1734921492567,0.07691014,94122.0,94111.0,0.022]
[1734921492799,0.28940014,94122.0,94110.0,0.19532216]
[1734921493027,0.28940014,94122.0,94110.0,0.23918842]
[1734921493236,0.07691014,94122.0,94110.0,0.23918842]
[1734921493506,0.07691014,94122.0,94111.0,0.212515]
[1734921493694,0.07791014,94122.0,94111.0,0.212515]
[1734921493903,0.07691014,94122.0,94110.0,0.04386626]
[1734921494134,0.07691014,94122.0,94110.0,0.19532216]
[1734921495463,0.07791014,94122.0,94110.0,0.19532216]
[1734921495844,0.212524,94107.0,94103.0,0.04344268]
[1734921496011,0.312519,94109.0,94103.0,0.04344268]
[1734921496214,0.312519,94109.0,94097.0,0.536]
[1734921496842,0.312519,94109.0,94099.0,0.19532216]
[1734921497067,0.1,94109.0,94099.0,0.19532216]
[1734921497283,0.1,94113.0,94099.0,0.40786316]
[1734921497484,0.1,94113.0,94099.0,0.27986316]
[1734921498176,0.1,94113.0,94099.0,0.06732216]
[1734921498350,0.1,94113.0,94097.0,0.04268629]
[1734921498351,0.212532,94104.0,94097.0,0.04268629]
[1734921498540,0.212532,94104.0,94091.0,0.15]
[1734921498954,0.42509,94098.0,94082.0,0.043918]
[1734921499177,0.1,94095.0,94082.0,0.212579]
[1734921499436,0.1,94100.0,94080.0,0.19532216]
[1734921499565,0.2259,94103.0,94079.0,0.02175576]
[1734921499566,0.2259,94103.0,94090.0,0.40788416]
[1734921500117,0.1,94080.0,94079.0,0.02175576]
[1734921500321,0.1,94054.0,94040.0,0.09517403]
[1734921500525,0.0489,94055.0,94040.0,0.09517403]
[1734921500729,0.00503179,94053.0,94040.0,0.09517403]
[1734921500885,0.00503179,94053.0,94041.0,0.212673]
[1734921501094,0.212635,94058.0,94041.0,0.212673]
[1734921501298,0.00519978,94052.0,94041.0,0.212673]
[1734921501493,0.212635,94058.0,94042.0,0.15]
[1734921501696,0.21785073,94051.0,94041.0,0.00016184]
[1734921501909,0.212651,94051.0,94041.0,0.00016184]
[1734921502104,0.00519966,94050.0,94041.0,0.00016184]
[1734921502475,0.0825,94049.0,94041.0,0.00016184]
[1734921502680,0.0825,94049.0,94036.0,0.2338706]
[1734921502681,0.0825,94049.0,94036.0,0.0211876]
[1734921502851,0.0825,94049.0,94036.0,0.02134932]
[1734921503105,0.0825,94049.0,94041.0,0.001]
[1734921503307,0.0825,94049.0,94036.0,0.02134932]
[1734921503308,0.425344,94042.0,94036.0,0.00016172]
[1734921503658,0.425344,94042.0,94041.0,0.001]
[1734921503861,0.571644,94042.0,94041.0,0.001]
[1734921504027,0.67819276,94042.0,94041.0,0.001]
[1734921504229,0.77819276,94042.0,94041.0,0.001]
[1734921504897,0.77819276,94042.0,94036.0,0.00016172]
[1734921505133,0.2,94037.0,94036.0,0.00216172]
[1734921505938,0.2,94037.0,94036.0,0.00016172]
[1734921506503,0.201037,94037.0,94036.0,0.00016172]
[1734921506723,0.001037,94037.0,94036.0,0.00016172]
[1734921506913,0.1,94037.0,94036.0,0.00016172]
[1734921507113,0.101037,94037.0,94036.0,0.00016172]
[1734921507316,0.001037,94037.0,94036.0,0.00016172]
[1734921507635,0.1,94041.0,94020.0,8.55e-05]
[1734921508162,0.1,94041.0,94036.0,0.002]
[1734921508598,0.0463,94042.0,94036.0,0.002]
[1734921508806,0.0463,94042.0,94027.0,0.15]
[1734921509028,0.0825,94049.0,94027.0,0.15]
[1734921509565,0.0825,94049.0,94038.0,0.15]
[1734921509794,0.0825,94049.0,94040.0,0.15]
[1734921510254,0.0825,94049.0,94041.0,0.212673]
[1734921510484,0.0825,94049.0,94040.0,0.15]
[1734921510717,0.0825,94049.0,94041.0,0.212673]
[1734921510922,0.1,94056.0,94043.0,0.212668]
[1734921511070,0.00016169,94056.0,94044.0,0.15]
[1734921511296,0.00016169,94056.0,94052.0,0.15]
[1734921511506,0.00016169,94056.0,94053.0,0.212646]
[1734921511884,0.0822,94077.0,94066.0,0.15]
[1734921512018,0.0822,94077.0,94067.0,0.212614]
[1734921512426,0.0822,94077.0,94067.0,0.084614]
[1734921512629,0.0822,94077.0,94065.0,0.212616]
[1734921512630,0.0822,94077.0,94066.0,0.0211545]
[1734921513040,0.0822,94077.0,94065.0,0.212616]
[1734921513535,0.0822,94077.0,94065.0,0.425233]
[1734921513760,0.0492,94087.0,94064.0,0.02143344]
[1734921513761,0.0492,94087.0,94071.0,0.212604]
[1734921513957,0.04936184,94087.0,94077.0,0.212591]
[1734921514188,0.00016184,94087.0,94077.0,0.212591]
[1734921514397,0.00016184,94087.0,94083.0,0.212576]
[1734921514814,0.00016184,94087.0,94083.0,0.425153]
[1734921515702,0.00016184,94087.0,94083.0,0.428153]
[1734921515942,0.00016184,94087.0,94083.0,0.425153]
[1734921517021,0.00016184,94087.0,94083.0,0.212576]
[1734921517182,0.00016184,94087.0,94083.0,0.0490502]
[1734921517512,0.00016184,94087.0,94079.0,0.1286362]
[1734921517814,0.00016184,94087.0,94077.0,0.19532216]
[1734921517991,0.00016184,94087.0,94083.0,0.007]
[1734921518194,0.00016184,94087.0,94079.0,0.212586]
[1734921518393,0.00016184,94087.0,94077.0,0.23774727]
[1734921518592,0.00016184,94087.0,94085.0,0.212573]
[1734921518804,0.0492,94101.0,94085.0,0.212573]
[1734921519006,0.00053934,94101.0,94091.0,0.19532216]
[1734921519185,0.0001708,94113.0,94111.0,0.212512]
[1734921521002,0.0001708,94113.0,94107.0,0.212524]
[1734921521209,0.0001708,94113.0,94100.0,0.02165487]
[1734921521373,0.0001708,94113.0,94111.0,0.006]
[1734921521623,0.212512,94112.0,94095.0,0.25577369]
[1734921521835,0.212512,94112.0,94095.0,0.27699444]
[1734921522101,0.0001708,94113.0,94111.0,0.001]
[1734921522637,0.0001708,94113.0,94103.0,0.212533]
[1734921522841,0.0001708,94113.0,94100.0,0.19532216]
[1734921523046,0.212512,94112.0,94100.0,0.19532216]
[1734921523449,0.0001708,94113.0,94095.0,0.02122075]
[1734921523665,0.0001708,94113.0,94100.0,0.19532216]
[1734921523882,0.0001708,94113.0,94108.0,0.212521]
[1734921524312,0.0011708,94113.0,94110.0,0.212517]
[1734921524516,0.0011708,94113.0,94110.0,0.3138254]
[1734921524716,0.0001708,94113.0,94110.0,0.3138254]
[1734921524922,0.0011708,94113.0,94110.0,0.3138254]
[1734921525239,0.0001708,94113.0,94110.0,0.3138254]
[1734921525593,0.0001708,94113.0,94110.0,0.3158254]
[1734921525783,0.0001708,94113.0,94110.0,0.3138254]
[1734921526239,0.0001708,94113.0,94110.0,0.3208254]
[1734921527150,0.0001708,94113.0,94110.0,0.1083084]
[1734921527360,0.0001708,94113.0,94110.0,0.007]
[1734921527569,0.0001708,94113.0,94105.0,0.212528]
[1734921527773,0.0001708,94113.0,94100.0,0.19532216]
[1734921527981,0.0001708,94113.0,94110.0,0.009]
[1734921528683,0.3247,94111.0,94110.0,0.009]
[1734921528886,0.212533,94103.0,94100.0,0.04410971]
[1734921529116,0.212533,94103.0,94100.0,0.009]
[1734921529517,0.1,94106.0,94091.0,0.04303697]
[1734921529856,0.212528,94105.0,94091.0,0.04303697]
[1734921530739,0.1,94106.0,94092.0,0.212557]
[1734921531094,0.1247,94111.0,94093.0,0.212555]
[1734921531508,0.1247,94111.0,94094.0,0.212553]
[1734921531707,0.1247,94111.0,94092.0,0.1013084]
[1734921531911,0.0101708,94113.0,94100.0,0.19532216]
[1734921532114,0.0101708,94113.0,94106.0,0.212525]
[1734921532520,0.0101708,94113.0,94107.0,0.212524]
[1734921532929,0.001,94111.0,94107.0,0.212524]
[1734921533131,0.001,94111.0,94108.0,0.15]
[1734921533505,0.001,94111.0,94109.0,0.212519]
[1734921534065,0.001,94111.0,94110.0,0.15]
[1734921534268,0.0101708,94113.0,94110.0,0.15]
[1734921534441,0.0101708,94113.0,94110.0,0.17086769]
[1734921535064,0.0101708,94113.0,94110.0,0.02086769]
[1734921535786,0.0101708,94113.0,94111.0,0.212515]
[1734921536614,0.0101708,94113.0,94110.0,0.02486769]
[1734921537029,0.0101708,94113.0,94110.0,0.004]
[1734921537457,0.0101708,94113.0,94107.0,0.04280581]
[1734921537664,0.0101708,94113.0,94108.0,0.212521]
[1734921538183,0.0101708,94113.0,94111.0,0.212515]
[1734921538895,0.0101708,94113.0,94108.0,0.215521]
[1734921539141,0.0101708,94113.0,94108.0,0.003]
[1734921539332,0.0101708,94113.0,94106.0,0.212526]
[1734921539563,0.0101708,94113.0,94106.0,0.3138344]
[1734921539787,0.0101708,94113.0,94106.0,0.15]
[1734921540029,0.0101708,94113.0,94105.0,0.536]
[1734921540504,0.0101708,94113.0,94106.0,0.15]
[1734921540725,0.0101708,94113.0,94111.0,0.003]
[1734921540953,0.1,94110.0,94109.0,8.54e-05]
[1734921541159,0.3013084,94110.0,94109.0,8.54e-05]
[1734921541366,0.3475084,94110.0,94109.0,8.54e-05]
[1734921541577,0.1462,94110.0,94109.0,8.54e-05]
[1734921541789,0.0462,94110.0,94109.0,8.54e-05]
[1734921541987,0.0101708,94113.0,94109.0,8.54e-05]
[1734921542628,0.0101708,94113.0,94101.0,0.57830214]
[1734921542827,0.0101708,94113.0,94108.0,0.15]
[1734921543087,0.0101708,94113.0,94109.0,0.212519]
[1734921543256,0.0101708,94113.0,94108.0,0.15]
[1734921543465,0.0101708,94113.0,94112.0,0.15]
[1734921543690,0.0002308,94113.0,94112.0,0.15]
[1734921543921,0.0001708,94123.0,94121.0,0.15]
[1734921544915,0.0001708,94123.0,94119.0,0.15]
[1734921545121,0.00016171,94122.0,94121.0,0.15]
[1734921545316,0.00016171,94123.0,94122.0,0.92149]
[1734921545652,0.00016171,94123.0,94122.0,1.0227984]
[1734921545906,0.0811,94147.0,94140.0,0.212448]
[1734921546083,0.0476,94155.0,94143.0,0.15]